Workbook

Sheet Sheet1
A2: 20 | B2: =(B3+C2+C3/2)/2.5 -> 2.480120373e-05 | C2: =(B2+C3+D2+(B3+D3)/2)/4 -> 2.480120373e-05 | D2: =(C2+D3+E2+(C3+E3)/2)/4 -> 2.480120373e-05 | E2: =(D2+E3+F2+(D3+F3)/2)/4 -> 2.480120373e-05 | F2: =(E2+F3+G2+(E3+G3)/2)/4 -> 2.480120373e-05 | G2: =(F2+G3+H2+(F3+H3)/2)/4 -> 2.480120373e-05 | H2: =(G2+H3+I2+(G3+I3)/2)/4 -> 2.480120373e-05 | I2: =(H2+I3+J2+(H3+J3)/2)/4 -> 2.480120373e-05 | J2: =(I2+J3+K2+(I3+K3)/2)/4 -> 2.480120373e-05 | K2: =(J2+K3+L2+(J3+L3)/2)/4 -> 2.480120373e-05 | L2: =(K2+L3+M2+(K3+M3)/2)/4 -> 2.480120373e-05 | M2: =(L2+M3+N2+(L3+N3)/2)/4 -> 2.480120373e-05 | N2: =(M2+N3+O2+(M3+O3)/2)/4 -> 2.480120373e-05 | O2: =(N2+O3+P2+(N3+P3)/2)/4 -> 2.480120373e-05 | P2: =(O2+P3+Q2+(O3+Q3)/2)/4 -> 2.480120373e-05 | Q2: =(P2+Q3+R2+(P3+R3)/2)/4 -> 2.480120373e-05 | R2: =(Q2+R3+S2+(Q3+S3)/2)/4 -> 2.480120373e-05 | S2: =(R2+S3+T2+(R3+T3)/2)/4 -> 2.480120373e-05 | T2: =(S2+T3+U2+(S3+U3)/2)/4 -> 2.480120373e-05 | U2: =(U3+T2+T3/2)/2.5 -> 2.480120373e-05
A3: 19 | B3: =(B4+B2+C3+(C2+C4)/2)/4 -> 2.480120373e-05 | C3: =(C2+C4+B3+D3+(B2+D2+B4+D4)/2)/6 -> 2.480120373e-05 | D3: =(D2+D4+C3+E3+(C2+E2+C4+E4)/2)/6 -> 2.480120373e-05 | E3: =(E2+E4+D3+F3+(D2+F2+D4+F4)/2)/6 -> 2.480120373e-05 | F3: =(F2+F4+E3+G3+(E2+G2+E4+G4)/2)/6 -> 2.480120373e-05 | G3: =(G2+G4+F3+H3+(F2+H2+F4+H4)/2)/6 -> 2.480120373e-05 | H3: =(H2+H4+G3+I3+(G2+I2+G4+I4)/2)/6 -> 2.480120373e-05 | I3: =(I2+I4+H3+J3+(H2+J2+H4+J4)/2)/6 -> 2.480120373e-05 | J3: =(J2+J4+I3+K3+(I2+K2+I4+K4)/2)/6 -> 2.480120373e-05 | K3: =(K2+K4+J3+L3+(J2+L2+J4+L4)/2)/6 -> 2.480120373e-05 | L3: =(L2+L4+K3+M3+(K2+M2+K4+M4)/2)/6 -> 2.480120373e-05 | M3: =(M2+M4+L3+N3+(L2+N2+L4+N4)/2)/6 -> 2.480120373e-05 | N3: =(N2+N4+M3+O3+(M2+O2+M4+O4)/2)/6 -> 2.480120373e-05 | O3: =(O2+O4+N3+P3+(N2+P2+N4+P4)/2)/6 -> 2.480120373e-05 | P3: =(P2+P4+O3+Q3+(O2+Q2+O4+Q4)/2)/6 -> 2.480120373e-05 | Q3: =(Q2+Q4+P3+R3+(P2+R2+P4+R4)/2)/6 -> 2.480120373e-05 | R3: =(R2+R4+Q3+S3+(Q2+S2+Q4+S4)/2)/6 -> 2.480120373e-05 | S3: =(S2+S4+R3+T3+(R2+T2+R4+T4)/2)/6 -> 2.480120373e-05 | T3: =(T2+T4+S3+U3+(S2+U2+S4+U4)/2)/6 -> 2.480120373e-05 | U3: =(T3+U2+U4+(T2+T4)/2)/4 -> 2.480120373e-05
A4: 18 | B4: 2.480120373e-05 | C4: 2.480120373e-05 | D4: 2.480120373e-05 | E4: 2.480120373e-05 | F4: 2.480120373e-05 | G4: 2.480120373e-05 | H4: 2.480120373e-05 | I4: 2.480120373e-05 | J4: 2.480120373e-05 | K4: 2.480120373e-05 | L4: 2.480120373e-05 | M4: 2.480120373e-05 | N4: 2.480120373e-05 | O4: 2.480120373e-05 | P4: 2.480120373e-05 | Q4: 2.480120373e-05 | R4: 2.480120373e-05 | S4: 2.480120373e-05 | T4: 2.480120373e-05 | U4: 2.480120373e-05
A5: 17 | B5: 2.480120373e-05 | C5: 2.480120373e-05 | D5: 2.480120373e-05 | E5: 2.480120373e-05 | F5: 2.480120373e-05 | G5: 2.480120373e-05 | H5: 2.480120373e-05 | I5: 2.480120373e-05 | J5: 2.480120373e-05 | K5: 2.480120373e-05 | L5: 2.480120373e-05 | M5: 2.480120373e-05 | N5: 2.480120373e-05 | O5: 2.480120373e-05 | P5: 2.480120373e-05 | Q5: 2.480120373e-05 | R5: 2.480120373e-05 | S5: 2.480120373e-05 | T5: 2.480120373e-05 | U5: 2.480120373e-05
A6: 16 | B6: 2.480120373e-05 | C6: 2.480120373e-05 | D6: 2.480120373e-05 | E6: 2.480120373e-05 | F6: 2.480120373e-05 | G6: 2.480120373e-05 | H6: 2.480120373e-05 | I6: 2.480120373e-05 | J6: 2.480120373e-05 | K6: 2.480120373e-05 | L6: 2.480120373e-05 | M6: 2.480120373e-05 | N6: 2.480120373e-05 | O6: 2.480120373e-05 | P6: 2.480120373e-05 | Q6: 2.480120373e-05 | R6: 2.480120373e-05 | S6: 2.480120373e-05 | T6: 2.480120373e-05 | U6: 2.480120373e-05
A7: 15 | B7: 2.480120373e-05 | C7: 2.480120373e-05 | D7: 2.480120373e-05 | E7: 2.480120373e-05 | F7: 2.480120373e-05 | G7: 2.480120373e-05 | H7: 2.480120373e-05 | I7: 2.480120373e-05 | J7: 2.480120373e-05 | K7: 2.480120373e-05 | L7: 2.480120373e-05 | M7: 2.480120373e-05 | N7: 2.480120373e-05 | O7: 2.480120373e-05 | P7: 2.480120373e-05 | Q7: 2.480120373e-05 | R7: 2.480120373e-05 | S7: 2.480120373e-05 | T7: 2.480120373e-05 | U7: 2.480120373e-05
A8: 14 | B8: 2.480120373e-05 | C8: 2.480120373e-05 | D8: 2.480120373e-05 | E8: 2.480120373e-05 | F8: 2.480120373e-05 | G8: 2.480120373e-05 | H8: 2.480120373e-05 | I8: 2.480120373e-05 | J8: 2.480120373e-05 | K8: 2.480120373e-05 | L8: 2.480120373e-05 | M8: 2.480120373e-05 | N8: 2.480120373e-05 | O8: 2.480120373e-05 | P8: 2.480120373e-05 | Q8: 2.480120373e-05 | R8: 2.480120373e-05 | S8: 2.480120373e-05 | T8: 2.480120373e-05 | U8: 2.480120373e-05
A9: 13 | B9: 2.480120373e-05 | C9: 2.480120373e-05 | D9: 2.480120373e-05 | E9: 2.480120373e-05 | F9: 2.480120373e-05 | G9: 2.480120373e-05 | H9: 2.480120373e-05 | I9: 2.480120373e-05 | J9: 2.480120373e-05 | K9: 2.480120373e-05 | L9: 2.480120373e-05 | M9: 2.480120373e-05 | N9: 2.480120373e-05 | O9: 2.480120373e-05 | P9: 2.480120373e-05 | Q9: 2.480120373e-05 | R9: 2.480120373e-05 | S9: 2.480120373e-05 | T9: 2.480120373e-05 | U9: 2.480120373e-05
A10: 12 | B10: 2.480120373e-05 | C10: 2.480120373e-05 | D10: 2.480120373e-05 | E10: 2.480120373e-05 | F10: 2.480120373e-05 | G10: 2.480120373e-05 | H10: 2.480120373e-05 | I10: 2.480120373e-05 | J10: 2.480120373e-05 | K10: 2.480120373e-05 | L10: 2.480120373e-05 | M10: 2.480120373e-05 | N10: 2.480120373e-05 | O10: 2.480120373e-05 | P10: 2.480120373e-05 | Q10: 2.480120373e-05 | R10: 2.480120373e-05 | S10: 2.480120373e-05 | T10: 2.480120373e-05 | U10: 2.480120373e-05
A11: 11 | B11: 2.480120373e-05 | C11: 2.480120373e-05 | D11: 2.480120373e-05 | E11: 2.480120373e-05 | F11: 2.480120373e-05 | G11: 2.480120373e-05 | H11: 2.480120373e-05 | I11: 2.480120373e-05 | J11: 2.480120373e-05 | K11: 2.480120373e-05 | L11: 2.480120373e-05 | M11: 2.480120373e-05 | N11: 2.480120373e-05 | O11: 2.480120373e-05 | P11: 2.480120373e-05 | Q11: 2.480120373e-05 | R11: 2.480120373e-05 | S11: 2.480120373e-05 | T11: 2.480120373e-05 | U11: 2.480120373e-05
A12: 10 | B12: 2.480120373e-05 | C12: 2.480120373e-05 | D12: 2.480120373e-05 | E12: 2.480120373e-05 | F12: 2.480120373e-05 | G12: 2.480120373e-05 | H12: 2.480120373e-05 | I12: 2.480120373e-05 | J12: 2.480120373e-05 | K12: 2.480120373e-05 | L12: 2.480120373e-05 | M12: 2.480120373e-05 | N12: 2.480120373e-05 | O12: 2.480120373e-05 | P12: 2.480120373e-05 | Q12: 2.480120373e-05 | R12: 2.480120373e-05 | S12: 2.480120373e-05 | T12: 2.480120373e-05 | U12: 2.480120373e-05
A13: 9 | B13: 2.480120373e-05 | C13: 2.480120373e-05 | D13: 2.480120373e-05 | E13: 2.480120373e-05 | F13: 2.480120373e-05 | G13: 2.480120373e-05 | H13: 2.480120373e-05 | I13: 2.480120373e-05 | J13: 2.480120373e-05 | K13: 2.480120373e-05 | L13: 2.480120373e-05 | M13: 2.480120373e-05 | N13: 2.480120373e-05 | O13: 2.480120373e-05 | P13: 2.480120373e-05 | Q13: 2.480120373e-05 | R13: 2.480120373e-05 | S13: 2.480120373e-05 | T13: 2.480120373e-05 | U13: 2.480120373e-05
A14: 8 | B14: 2.480120373e-05 | C14: 2.480120373e-05 | D14: 2.480120373e-05 | E14: 2.480120373e-05 | F14: 2.480120373e-05 | G14: 2.480120373e-05 | H14: 2.480120373e-05 | I14: 2.480120373e-05 | J14: 2.480120373e-05 | K14: 2.480120373e-05 | L14: 2.480120373e-05 | M14: 2.480120373e-05 | N14: 2.480120373e-05 | O14: 2.480120373e-05 | P14: 2.480120373e-05 | Q14: 2.480120373e-05 | R14: 2.480120373e-05 | S14: 2.480120373e-05 | T14: 2.480120373e-05 | U14: 2.480120373e-05
A15: 7 | B15: 2.480120373e-05 | C15: 2.480120373e-05 | D15: 2.480120373e-05 | E15: 2.480120373e-05 | F15: 2.480120373e-05 | G15: 2.480120373e-05 | H15: 2.480120373e-05 | I15: 2.480120373e-05 | J15: 2.480120373e-05 | K15: 2.480120373e-05 | L15: 2.480120373e-05 | M15: 2.480120373e-05 | N15: 2.480120373e-05 | O15: 2.480120373e-05 | P15: 2.480120373e-05 | Q15: 2.480120373e-05 | R15: 2.480120373e-05 | S15: 2.480120373e-05 | T15: 2.480120373e-05 | U15: 2.480120373e-05
A16: 6 | B16: 2.480120373e-05 | C16: 2.480120373e-05 | D16: 2.480120373e-05 | E16: 2.480120373e-05 | F16: 2.480120373e-05 | G16: 2.480120373e-05 | H16: 2.480120373e-05 | I16: 2.480120373e-05 | J16: 2.480120373e-05 | K16: 2.480120373e-05 | L16: 2.480120373e-05 | M16: 2.480120373e-05 | N16: 2.480120373e-05 | O16: 2.480120373e-05 | P16: 2.480120373e-05 | Q16: 2.480120373e-05 | R16: 2.480120373e-05 | S16: 2.480120373e-05 | T16: 2.480120373e-05 | U16: 2.480120373e-05
A17: 5 | B17: 2.480120373e-05 | C17: 2.480120373e-05 | D17: 2.480120373e-05 | E17: 2.480120373e-05 | F17: 2.480120373e-05 | G17: 2.480120373e-05 | H17: 2.480120373e-05 | I17: 2.480120373e-05 | J17: 2.480120373e-05 | K17: 2.480120373e-05 | L17: 2.480120373e-05 | M17: 2.480120373e-05 | N17: 2.480120373e-05 | O17: 2.480120373e-05 | P17: 2.480120373e-05 | Q17: 2.480120373e-05 | R17: 2.480120373e-05 | S17: 2.480120373e-05 | T17: 2.480120373e-05 | U17: 2.480120373e-05
A18: 4 | B18: 2.480120373e-05 | C18: 2.480120373e-05 | D18: 2.480120373e-05 | E18: 2.480120373e-05 | F18: 2.480120373e-05 | G18: 2.480120373e-05 | H18: 2.480120373e-05 | I18: 2.480120373e-05 | J18: 2.480120373e-05 | K18: 2.480120373e-05 | L18: 2.480120373e-05 | M18: 2.480120373e-05 | N18: 2.480120373e-05 | O18: 2.480120373e-05 | P18: 2.480120373e-05 | Q18: 2.480120373e-05 | R18: 2.480120373e-05 | S18: 2.480120373e-05 | T18: 2.480120373e-05 | U18: 2.480120373e-05
A19: 3 | B19: 2.480120373e-05 | C19: 2.480120373e-05 | D19: 2.480120373e-05 | E19: 2.480120373e-05 | F19: 2.480120373e-05 | G19: 2.480120373e-05 | H19: 2.480120373e-05 | I19: 2.480120373e-05 | J19: 2.480120373e-05 | K19: 2.480120373e-05 | L19: 2.480120373e-05 | M19: 2.480120373e-05 | N19: 2.480120373e-05 | O19: 2.480120373e-05 | P19: 2.480120373e-05 | Q19: 2.480120373e-05 | R19: 2.480120373e-05 | S19: 2.480120373e-05 | T19: 2.480120373e-05 | U19: 2.480120373e-05
A20: 2 | B20: 2.480120373e-05 | C20: 2.480120373e-05 | D20: 2.480120373e-05 | E20: 2.480120373e-05 | F20: 2.480120373e-05 | G20: 2.480120373e-05 | H20: 2.480120373e-05 | I20: 2.480120373e-05 | J20: 2.480120373e-05 | K20: 2.480120373e-05 | L20: 2.480120373e-05 | M20: 2.480120373e-05 | N20: 2.480120373e-05 | O20: 2.480120373e-05 | P20: 2.480120373e-05 | Q20: 2.480120373e-05 | R20: 2.480120373e-05 | S20: 2.480120373e-05 | T20: 2.480120373e-05 | U20: =(T20+U19+U21+(T19+T21)/2)/4 -> 2.480120373e-05
A21: 1 | B21: =(B20+C21+C20/2)/2.5 -> 2.480120373e-05 | C21: =(C20+B21+D21+(B20+D20)/2)/4 -> 2.480120373e-05 | D21: =(D20+C21+E21+(C20+E20)/2)/4 -> 2.480120373e-05 | E21: =(E20+D21+F21+(D20+F20)/2)/4 -> 2.480120373e-05 | F21: =(F20+E21+G21+(E20+G20)/2)/4 -> 2.480120373e-05 | G21: =(G20+F21+H21+(F20+H20)/2)/4 -> 2.480120373e-05 | H21: =(H20+G21+I21+(G20+I20)/2)/4 -> 2.480120373e-05 | I21: =(I20+H21+J21+(H20+J20)/2)/4 -> 2.480120373e-05 | J21: =(J20+I21+K21+(I20+K20)/2)/4 -> 2.480120373e-05 | K21: =(K20+J21+L21+(J20+L20)/2)/4 -> 2.480120373e-05 | L21: =(L20+K21+M21+(K20+M20)/2)/4 -> 2.480120373e-05 | M21: =(M20+L21+N21+(L20+N20)/2)/4 -> 2.480120373e-05 | N21: =(N20+M21+O21+(M20+O20)/2)/4 -> 2.480120373e-05 | O21: =(O20+N21+P21+(N20+P20)/2)/4 -> 2.480120373e-05 | P21: =(P20+O21+Q21+(O20+Q20)/2)/4 -> 2.480120373e-05 | Q21: =(Q20+P21+R21+(P20+R20)/2)/4 -> 2.480120373e-05 | R21: =(R20+Q21+S21+(Q20+S20)/2)/4 -> 2.480120373e-05 | S21: =(S20+R21+T21+(R20+T20)/2)/4 -> 2.480120373e-05 | T21: =(T20+S21+U21+(S20+U20)/2)/4 -> 2.480120373e-05 | U21: =(U20+T21+T20/2)/2.5 -> 2.480120373e-05
B57: =(B58+C57+C58/2)/2.5 -> 2.480120373e-05 | C57: =(B57+C58+D57+(B58+D58)/2)/4 -> 2.480120373e-05 | D57: =(C57+D58+E57+(C58+E58)/2)/4 -> 2.480120373e-05 | E57: 2.480120373e-05 | F57: 2.480120373e-05 | G57: 2.480120373e-05 | H57: 2.480120373e-05 | I57: 2.480120373e-05 | J57: 2.480120373e-05 | K57: 2.480120373e-05 | L57: 2.480120373e-05 | M57: 2.480120373e-05 | N57: 2.480120373e-05 | O57: 2.480120373e-05 | P57: 2.480120373e-05 | Q57: 2.480120373e-05 | R57: 2.480120373e-05 | S57: 2.480120373e-05 | T57: 2.480120373e-05 | U57: =(U58+T57+T58/2)/2.5 -> 2.480120373e-05
B58: =(B59+B57+C58+(C57+C59)/2)/4 -> 2.480120373e-05 | C58: =(C57+C59+B58+D58+(B57+D57+B59+D59)/2)/6 -> 2.480120373e-05 | D58: 2.480120373e-05 | E58: 2.480120373e-05 | F58: 2.480120373e-05 | G58: 2.480120373e-05 | H58: 2.480120373e-05 | I58: 2.480120373e-05 | J58: 2.480120373e-05 | K58: 2.480120373e-05 | L58: 2.480120373e-05 | M58: =(M57+M59+L58+N58+(L57+N57+L59+N59)/2)/6 -> 2.480120373e-05 | N58: 2.480120373e-05 | O58: 2.480120373e-05 | P58: 2.480120373e-05 | Q58: 2.480120373e-05 | R58: 2.480120373e-05 | S58: 2.480120373e-05 | T58: 2.480120373e-05 | U58: =(T58+U57+U59+(T57+T59)/2)/4 -> 2.480120373e-05
B59: 2.480120373e-05 | C59: =(C58+C60+B59+D59+(B58+D58+B60+D60)/2)/6 -> 2.480120373e-05 | D59: 2.480120373e-05 | E59: 2.480120373e-05 | F59: 2.480120373e-05 | G59: 2.480120373e-05 | H59: 2.480120373e-05 | I59: 2.480120373e-05 | J59: 2.480120373e-05 | K59: 2.480120373e-05 | L59: =(L58+L60+K59+M59+(K58+M58+K60+M60)/2)/6 -> 2.480120373e-05 | M59: 2.480120373e-05 | N59: 2.480120373e-05 | O59: 2.480120373e-05 | P59: 2.480120373e-05 | Q59: 2.480120373e-05 | R59: 2.480120373e-05 | S59: 2.480120373e-05 | T59: 2.480120373e-05 | U59: 2.480120373e-05
B60: 2.480120373e-05 | C60: 2.480120373e-05 | D60: 2.480120373e-05 | E60: 2.480120373e-05 | F60: 2.480120373e-05 | G60: 2.480120373e-05 | H60: 2.480120373e-05 | I60: 2.480120373e-05 | J60: 2.480120373e-05 | K60: 2.480120373e-05 | L60: 2.480120373e-05 | M60: 2.480120373e-05 | N60: 2.480120373e-05 | O60: 2.480120373e-05 | P60: 2.480120373e-05 | Q60: 2.480120373e-05 | R60: 2.480120373e-05 | S60: 2.480120373e-05 | T60: 2.480120373e-05 | U60: 2.480120373e-05
B61: 2.480120373e-05 | C61: 2.480120373e-05 | D61: 2.480120373e-05 | E61: 2.480120373e-05 | F61: 2.480120373e-05 | G61: 2.480120373e-05 | H61: 2.480120373e-05 | I61: 2.480120373e-05 | J61: 2.480120373e-05 | K61: 2.480120373e-05 | L61: 2.480120373e-05 | M61: 2.480120373e-05 | N61: 2.480120373e-05 | O61: 2.480120373e-05 | P61: 2.480120373e-05 | Q61: 2.480120373e-05 | R61: 2.480120373e-05 | S61: 2.480120373e-05 | T61: 2.480120373e-05 | U61: 2.480120373e-05
B62: 2.480120373e-05 | C62: 2.480120373e-05 | D62: 2.480120373e-05 | E62: 2.480120373e-05 | F62: 2.480120373e-05 | G62: 2.480120373e-05 | H62: 2.480120373e-05 | I62: 2.480120373e-05 | J62: 2.480120373e-05 | K62: 2.480120373e-05 | L62: 2.480120373e-05 | M62: 2.480120373e-05 | N62: 2.480120373e-05 | O62: 2.480120373e-05 | P62: 2.480120373e-05 | Q62: 2.480120373e-05 | R62: 2.480120373e-05 | S62: 2.480120373e-05 | T62: 2.480120373e-05 | U62: 2.480120373e-05
B63: 2.480120373e-05 | C63: 2.480120373e-05 | D63: 2.480120373e-05 | E63: 2.480120373e-05 | F63: 2.480120373e-05 | G63: 2.480120373e-05 | H63: 2.480120373e-05 | I63: 2.480120373e-05 | J63: 2.480120373e-05 | K63: 2.480120373e-05 | L63: 2.480120373e-05 | M63: 2.480120373e-05 | N63: 2.480120373e-05 | O63: 2.480120373e-05 | P63: 2.480120373e-05 | Q63: 2.480120373e-05 | R63: 2.480120373e-05 | S63: 2.480120373e-05 | T63: 2.480120373e-05 | U63: 2.480120373e-05
B64: 2.480120373e-05 | C64: 2.480120373e-05 | D64: 2.480120373e-05 | E64: 2.480120373e-05 | F64: 2.480120373e-05 | G64: 2.480120373e-05 | H64: 2.480120373e-05 | I64: 2.480120373e-05 | J64: 2.480120373e-05 | K64: 2.480120373e-05 | L64: 2.480120373e-05 | M64: 2.480120373e-05 | N64: 2.480120373e-05 | O64: 2.480120373e-05 | P64: 2.480120373e-05 | Q64: 2.480120373e-05 | R64: 2.480120373e-05 | S64: 2.480120373e-05 | T64: 2.480120373e-05 | U64: 2.480120373e-05
B65: 2.480120373e-05 | C65: 2.480120373e-05 | D65: 2.480120373e-05 | E65: 2.480120373e-05 | F65: 2.480120373e-05 | G65: 2.480120373e-05 | H65: 2.480120373e-05 | I65: 2.480120373e-05 | J65: 2.480120373e-05 | K65: 2.480120373e-05 | L65: 2.480120373e-05 | M65: 2.480120373e-05 | N65: 2.480120373e-05 | O65: 2.480120373e-05 | P65: 2.480120373e-05 | Q65: 2.480120373e-05 | R65: 2.480120373e-05 | S65: 2.480120373e-05 | T65: 2.480120373e-05 | U65: 2.480120373e-05
B66: 2.480120373e-05 | C66: 2.480120373e-05 | D66: 2.480120373e-05 | E66: 2.480120373e-05 | F66: 2.480120373e-05 | G66: 2.480120373e-05 | H66: 2.480120373e-05 | I66: 2.480120373e-05 | J66: 2.480120373e-05 | K66: 2.480120373e-05 | L66: 2.480120373e-05 | M66: 2.480120373e-05 | N66: 2.480120373e-05 | O66: 2.480120373e-05 | P66: 2.480120373e-05 | Q66: 2.480120373e-05 | R66: 2.480120373e-05 | S66: 2.480120373e-05 | T66: 2.480120373e-05 | U66: 2.480120373e-05
B67: 2.480120373e-05 | C67: 2.480120373e-05 | D67: 2.480120373e-05 | E67: 2.480120373e-05 | F67: 2.480120373e-05 | G67: 2.480120373e-05 | H67: 2.480120373e-05 | I67: 2.480120373e-05 | J67: 2.480120373e-05 | K67: 2.480120373e-05 | L67: 2.480120373e-05 | M67: 2.480120373e-05 | N67: 2.480120373e-05 | O67: 2.480120373e-05 | P67: 2.480120373e-05 | Q67: 2.480120373e-05 | R67: 2.480120373e-05 | S67: 2.480120373e-05 | T67: 2.480120373e-05 | U67: 2.480120373e-05
B68: 2.480120373e-05 | C68: 2.480120373e-05 | D68: 2.480120373e-05 | E68: 2.480120373e-05 | F68: 2.480120373e-05 | G68: 2.480120373e-05 | H68: 2.480120373e-05 | I68: 2.480120373e-05 | J68: 2.480120373e-05 | K68: 2.480120373e-05 | L68: 2.480120373e-05 | M68: 2.480120373e-05 | N68: 2.480120373e-05 | O68: 2.480120373e-05 | P68: 2.480120373e-05 | Q68: 2.480120373e-05 | R68: 2.480120373e-05 | S68: 2.480120373e-05 | T68: 2.480120373e-05 | U68: 2.480120373e-05
B69: 2.480120373e-05 | C69: 2.480120373e-05 | D69: 2.480120373e-05 | E69: 2.480120373e-05 | F69: 2.480120373e-05 | G69: 2.480120373e-05 | H69: 2.480120373e-05 | I69: 2.480120373e-05 | J69: 2.480120373e-05 | K69: 2.480120373e-05 | L69: 2.480120373e-05 | M69: 2.480120373e-05 | N69: 2.480120373e-05 | O69: 2.480120373e-05 | P69: 2.480120373e-05 | Q69: 2.480120373e-05 | R69: 2.480120373e-05 | S69: 2.480120373e-05 | T69: 2.480120373e-05 | U69: 2.480120373e-05
B70: 2.480120373e-05 | C70: 2.480120373e-05 | D70: 2.480120373e-05 | E70: 2.480120373e-05 | F70: 2.480120373e-05 | G70: 2.480120373e-05 | H70: 2.480120373e-05 | I70: 2.480120373e-05 | J70: 2.480120373e-05 | K70: 2.480120373e-05 | L70: 2.480120373e-05 | M70: 2.480120373e-05 | N70: 2.480120373e-05 | O70: 2.480120373e-05 | P70: 2.480120373e-05 | Q70: 2.480120373e-05 | R70: 2.480120373e-05 | S70: 2.480120373e-05 | T70: 2.480120373e-05 | U70: 2.480120373e-05
B71: 2.480120373e-05 | C71: 2.480120373e-05 | D71: 2.480120373e-05 | E71: 2.480120373e-05 | F71: 2.480120373e-05 | G71: 2.480120373e-05 | H71: 2.480120373e-05 | I71: 2.480120373e-05 | J71: 2.480120373e-05 | K71: 2.480120373e-05 | L71: 2.480120373e-05 | M71: 2.480120373e-05 | N71: 2.480120373e-05 | O71: 2.480120373e-05 | P71: 2.480120373e-05 | Q71: 2.480120373e-05 | R71: 2.480120373e-05 | S71: 2.480120373e-05 | T71: 2.480120373e-05 | U71: 2.480120373e-05
B72: 2.480120373e-05 | C72: 2.480120373e-05 | D72: 2.480120373e-05 | E72: 2.480120373e-05 | F72: 2.480120373e-05 | G72: 2.480120373e-05 | H72: 2.480120373e-05 | I72: 2.480120373e-05 | J72: 2.480120373e-05 | K72: 2.480120373e-05 | L72: 2.480120373e-05 | M72: 2.480120373e-05 | N72: 2.480120373e-05 | O72: 2.480120373e-05 | P72: 2.480120373e-05 | Q72: 2.480120373e-05 | R72: 2.480120373e-05 | S72: 2.480120373e-05 | T72: 2.480120373e-05 | U72: 2.480120373e-05
B73: 2.480120373e-05 | C73: 2.480120373e-05 | D73: 2.480120373e-05 | E73: 2.480120373e-05 | F73: 2.480120373e-05 | G73: 2.480120373e-05 | H73: 2.480120373e-05 | I73: 2.480120373e-05 | J73: 2.480120373e-05 | K73: 2.480120373e-05 | L73: 2.480120373e-05 | M73: 2.480120373e-05 | N73: 2.480120373e-05 | O73: 2.480120373e-05 | P73: 2.480120373e-05 | Q73: 2.480120373e-05 | R73: 2.480120373e-05 | S73: 2.480120373e-05 | T73: 2.480120373e-05 | U73: 2.480120373e-05
B74: 2.480120373e-05 | C74: 2.480120373e-05 | D74: 2.480120373e-05 | E74: 2.480120373e-05 | F74: 2.480120373e-05 | G74: 2.480120373e-05 | H74: 2.480120373e-05 | I74: 2.480120373e-05 | J74: 2.480120373e-05 | K74: 2.480120373e-05 | L74: 2.480120373e-05 | M74: 2.480120373e-05 | N74: 2.480120373e-05 | O74: 2.480120373e-05 | P74: 2.480120373e-05 | Q74: 2.480120373e-05 | R74: 2.480120373e-05 | S74: =(S73+S75+R74+T74+(R73+T73+R75+T75)/2)/6 -> 2.480120373e-05 | T74: 2.480120373e-05 | U74: 2.480120373e-05
B75: 2.480120373e-05 | C75: =(C74+C76+B75+D75+(B74+D74+B76+D76)/2)/6 -> 2.480120373e-05 | D75: 2.480120373e-05 | E75: 2.480120373e-05 | F75: 2.480120373e-05 | G75: 2.480120373e-05 | H75: 2.480120373e-05 | I75: 2.480120373e-05 | J75: 2.480120373e-05 | K75: 2.480120373e-05 | L75: 2.480120373e-05 | M75: 2.480120373e-05 | N75: 2.480120373e-05 | O75: 2.480120373e-05 | P75: 2.480120373e-05 | Q75: 2.480120373e-05 | R75: 2.480120373e-05 | S75: 2.480120373e-05 | T75: 2.480120373e-05 | U75: =(T75+U74+U76+(T74+T76)/2)/4 -> 2.480120373e-05
B76: =(B75+C76+C75/2)/2.5 -> 2.480120373e-05 | C76: =(C75+B76+D76+(B75+D75)/2)/4 -> 2.480120373e-05 | D76: =(D75+C76+E76+(C75+E75)/2)/4 -> 2.480120373e-05 | E76: 2.480120373e-05 | F76: 2.480120373e-05 | G76: 2.480120373e-05 | H76: 2.480120373e-05 | I76: 2.480120373e-05 | J76: 2.480120373e-05 | K76: 2.480120373e-05 | L76: 2.480120373e-05 | M76: 2.480120373e-05 | N76: 2.480120373e-05 | O76: 2.480120373e-05 | P76: 2.480120373e-05 | Q76: 2.480120373e-05 | R76: 2.480120373e-05 | S76: 2.480120373e-05 | T76: 2.480120373e-05 | U76: =(U75+T76+T75/2)/2.5 -> 2.480120373e-05
